Cogmind - Beta 13 @@@ ROGUE MODE // 2024.03.24 @ 22:27:26 Player: f_ Result: Destroyed by D-53 Grenadier with Mini Grenade Launcher Performance ------------- Evolutions (0) 0 Regions Visited (2) 400 Robots Destroyed (21) 105 Value Destroyed (300) 300 Prototype IDs (2) 40 Alien Tech Used (0) 0 Bonus (0) 0 TOTAL SCORE: 845 Bonus ------- None Cogmind --------- Core Integrity 0/250 Matter 277/300 Energy 80/100 System Corruption 1% Temperature Cool (0) Movement Core (1400) Ox27 Location -10/Mines Parts ------- > --- POWER (1) -------- (None) > --- PROPULSION (2) --- (None) > --- UTILITY (2) ------ Huge Storage Unit > --- WEAPON (2) ------- Light Assault Rifle Mining Claw > --- INVENTORY (25) --- Light Ion Engine Wheel Improved Heat Sink Machine Analyzer Signal Interpreter Signal Interpreter Signal Interpreter Core Shielding Core Shielding Core Shielding Core Shielding Core Shielding Core Shielding Core Shielding Core Shielding Power Shielding Datajack Peak State ------------ > --- POWER ------------ Ion Engine > --- PROPULSION ------- Wheel Wheel > --- UTILITY ---------- Huge Storage Unit Core Shielding > --- WEAPON ----------- Medium Laser Beam Cannon > --- INVENTORY -------- Light Ion Engine Improved Heat Sink Machine Analyzer Signal Interpreter Signal Interpreter Signal Interpreter Core Shielding Core Shielding Core Shielding Core Shielding Core Shielding Core Shielding Core Shielding Core Shielding Power Shielding Datajack [Rating: 9] Favorites ----------- Power Ion Engine Engine Ion Engine Propulsion Wheel Wheel Wheel Utility Core Shielding Storage Huge Storage Unit Protection Core Shielding Weapon Beam Cannon Energy Gun Medium Laser Energy Cannon Beam Cannon Ballistic Gun Light Assault Rifle Ballistic Cannon Light Cannon Build | -11 -10 -10 ------- Run | Yrd Mat Min Slots Evolved . | . . . Power . | . . . Propulsion . | . . . Utility . | . . . Weapon . | . . . Parts Attached 24 | 7 12 5 Power 3 | 1 1 1 Engine 3 | 1 1 1 Core . | . . . Reactor . | . . . Propulsion 3 | 2 1 . Treads . | . . . Leg . | . . . Wheel 3 | 2 1 . Hover . | . . . Flight . | . . . Utility 8 | 1 7 . Device . | . . . Storage 5 | 1 4 . Processor . | . . . Hackware . | . . . Protection 3 | . 3 . Artifact . | . . . Weapon 10 | 3 3 4 Energy Gun 3 | 2 1 . Energy Cannon 1 | . 1 . Ballistic Gun 4 | 1 1 2 Ballistic Cannon 1 | . . 1 Launcher . | . . . Special Weapon . | . . . Impact Weapon . | . . . Slashing Weapon 1 | . . 1 Piercing Weapon . | . . . Special Melee Weapon . | . . . Unidentified Prototypes . | . . . Parts Lost 9 | . 2 7 Power 2 | . 1 1 Propulsion 2 | . . 2 Utility 1 | . . 1 Weapon 4 | . 1 3 Highest Loss Streak 7 | . 2 7 To Critical Strikes . | . . . Average Slot Usage (%) 94 | . 95 86 Engine 10 | . 10 7 Wheel 27 | . 28 24 Storage 13 | . 13 14 Protection 13 | . 13 14 Energy Gun 10 | . 11 . Energy Cannon 12 | . 12 10 Ballistic Gun 3 | . 3 3 Ballistic Cannon 1 | . . 11 Naked Turns . | . . . Heaviest Build 91 | 11 91 90 Greatest Support 20 | 20 20 20 Greatest Overweight (x) 8 | . 4 8 Average Overweight (x) 2 | . 2 4 Largest Inventory Capacity 25 | 8 25 25 Average Capacity 18 | 6 18 25 Most Carried 20 | 5 18 20 Average Carried 12 | 1 12 19 Final Capacity 25 | 8 25 25 Final Carried 18 | 1 18 17 Class Distribution -------------------- 100% | Mutant Dominant Class ---------------- Mutant | -10/Materials Mutant | -10/Mines Resources | -11 -10 -10 ----------- Run | Yrd Mat Min Matter Collected 408 | 44 344 20 Remotely . | . . . Salvage Created 617 | . 595 22 Parts 38 | . 35 3 Haulers Intercepted 2 | . 2 . Recyclers Shooed 3 | . 3 . Parts Field Recycled . | . . . Retrieved Matter . | . . . Parts Self-Destructed . | . . . Prevented . | . . . Kills | -11 -10 -10 ------- Run | Yrd Mat Min Combat Hostiles Destroyed 9 | . 9 . Guns 3 | . 3 . Cannons 5 | . 5 . Classes Destroyed 9 | . 8 1 Worker 1 | . . 1 Builder 1 | . 1 . Hauler 2 | . 2 . Recycler 2 | . 2 . Mechanic 1 | . 1 . Operator 2 | . 2 . Watcher 3 | . 3 . Swarmer 6 | . 6 . Grunt 3 | . 3 . Best Kill Streak 5 | . 5 1 Combat Bots Only 3 | . 3 . Max Kills in Single Turn 2 | . 2 1 Gunslinging . | . . . Exploded . | . . . Melee . | . . . Uniques/NPCs Destroyed . | . . . Combat | -11 -10 -10 -------- Run | Yrd Mat Min Hostile Shots Fired 51 | . 35 16 Missed 10 | . 9 1 Damage Taken 945 | . 306 639 Core 271 | . 12 259 Absorbed by Shields . | . . . Redirected to Shielding 51 | . 2 49 Core Remaining (%) 100 | 100 . . Volleys Fired 67 | . 57 10 Largest 2 | . 2 2 Hottest 110 | . 110 60 Shots Fired 114 | . 101 13 Gun 62 | . 56 6 Cannon 52 | . 45 7 Launcher . | . . . Special . | . . . Kinetic 17 | . 8 9 Thermal 90 | . 86 4 Explosive . | . . . Electromagnetic 7 | . 7 . Robot Hit Streak 10 | . 10 4 Robot Miss Streak 4 | . 4 2 Penetration Max . | . . . Secondary Targets . | . . . Shots Hit Robots 64 | . 58 6 Core Hits 30 | . 27 3 Critical Kills 1 | . 1 . Critical Parts Destroyed . | . . . Critical Strikes 4 | . 4 . Burn 3 | . 3 . Meltdown 1 | . 1 . Melee Attacks . | . . . Impact . | . . . Slashing . | . . . Piercing . | . . . Sneak Attacks . | . . . Combat Hostiles . | . . . Follow-up Attacks . | . . . Damage Inflicted 1006 | . 929 77 Guns 428 | . 405 23 Cannons 547 | . 493 54 Explosions 31 | . 31 . Melee . | . . . Ramming . | . . . Kinetic 67 | . 8 59 Thermal 888 | . 870 18 Explosive . | . . . Electromagnetic 51 | . 51 . Impact . | . . . Slashing . | . . . Piercing . | . . . Highest Corruption 1 | . 1 1 Average Corruption 1 | . 1 1 Corruption Purged . | . . . Corruption Blocked . | . . . Effects 2 | . 1 1 Energy Discharges 1 | . 1 . Data Loss (minor) 1 | . . 1 Overload Shots . | . . . Overflow Damage . | . . . Projectiles . | . . . Explosions . | . . . Melee . | . . . Knockbacks 2 | . . 2 Impact . | . . . Kinetic 2 | . . 2 Secondary . | . . . Self-Inflicted Damage 34 | . 34 . Shots 1 | . 1 . Rammed . | . . . Targets Rammed . | . . . Kicked . | . . . Crushed . | . . . Highest Temperature 334 | . 334 60 Average Temperature 91 | . 96 19 Received Heat Transfer 90 | . 90 . Effects 1 | . 1 . Energy Bleed 1 | . 1 . Siege Activations . | . . . Robots Corrupted . | . . . Combat Hostiles . | . . . Parts Fried . | . . . Impact Corruptions . | . . . Robots Melted 2 | . 2 . Combat Hostiles 1 | . 1 . Parts Melted 7 | . 7 . Heat Transferred 2381 | . 2344 37 Parts Sabotaged . | . . . Parts Stolen . | . . . Parts Stripped . | . . . Power Chain Reactions 1 | . 1 . Alert | -11 -10 -10 ------- Run | Yrd Mat Min Peak Influence 152 | . 152 38 Initial 18 | . . 18 Average 30 | . 32 25 Maximum Alert Level . | . . . Low Security (%) 100 | 100 100 100 Level 1 . | . . . Level 2 . | . . . Level 3 . | . . . Level 4 . | . . . Level 5 . | . . . High Security . | . . . Max Security . | . . . Squads Dispatched 1 | . 1 . Investigation . | . . . Extermination . | . . . Reinforcement 1 | . 1 . Assault . | . . . Garrison . | . . . Intercept . | . . . Searches Triggered . | . . . Construction Impeded . | . . . Haulers Reinforced . | . . . Active Scanning Responses . | . . . Cargo Convoy Interrupts . | . . . Stealth | -11 -10 -10 --------- Run | Yrd Mat Min Distress Signals 1 | . . 1 Communications Jammed . | . . . Distress Signals . | . . . Times Spotted 17 | . 14 3 Peak Tracking Total 3 | . 3 3 Tactical Retreats . | . . . Traps | -11 -10 -10 ------- Run | Yrd Mat Min Traps Triggered 1 | . 1 . Indirectly . | . . . Trap Hack Attempts . | . . . Triggered . | . . . Disarmed . | . . . Reprogrammed . | . . . Reused . | . . . Traps Extracted . | . . . Installed . | . . . Triggered . | . . . Machines | -11 -10 -10 ---------- Run | Yrd Mat Min Machines Disabled 1 | . . 1 Max in Single Turn 1 | . . 1 Machines Repaired . | . . . Machines Dismantled . | . . . Machines Sabotaged . | . . . Overloaded Fab Kills . | . . . Hacking | -11 -10 -10 --------- Run | Yrd Mat Min Machines Accessed 7 | . 7 . Terminals 7 | . 7 . Fabricators . | . . . Repair Stations . | . . . Recycling Units . | . . . Scanalyzers . | . . . Garrison Access . | . . . Total Hacks 14 | . 14 . Successful 9 | . 9 . Failed 5 | . 5 . Catastrophic . | . . . Database Lockouts . | . . . Manual . | . . . Terminals 14 | . 14 . Fabricators . | . . . Repair Stations . | . . . Recycling Units . | . . . Scanalyzers . | . . . Garrison Access . | . . . Terminal Hacks 9 | . 9 . Robot Analysis 1 | . 1 . Prototype ID Bank 1 | . 1 . Scanalyzer Index 1 | . 1 . Alert Level 1 | . 1 . Unreport Threat 1 | . 1 . Locate Traps 2 | . 2 . Dispatch Records 1 | . 1 . Zone Layout 1 | . 1 . Fabricator Hacks . | . . . Repair Station Hacks . | . . . Recycling Unit Hacks . | . . . Scanalyzer . | . . . Garrison Access Hacks . | . . . Unauthorized Hacks . | . . . Terminals . | . . . Fabricators . | . . . Repair Stations . | . . . Recycling Units . | . . . Scanalyzers . | . . . Garrison Access . | . . . Data Cores Recovered 1 | . 1 . Used . | . . . Hacking Detections 3 | . 3 . Full Trace Events 1 | . 1 . Feedback Events . | . . . Feedback Blocked . | . . . Robot Schematics Acquired . | . . . Robots Built . | . . . Authchips . | . . . Time . | . . . Total Robot Build Rating . | . . . Part Schematics Acquired . | . . . Parts Built . | . . . Authchips . | . . . Time . | . . . Total Part Build Rating . | . . . Parts Repaired . | . . . Time . | . . . Parts Recycled . | . . . Recycled Matter . | . . . Retrieved Matter . | . . . Retrieved Components . | . . . Parts Scanalyzed . | . . . Part Schematics Acquired . | . . . Parts Damaged . | . . . Bothacking | -11 -10 -10 ------------ Run | Yrd Mat Min Used RIF Installer . | . . . Robots Hacked . | . . . Non-combat . | . . . Combat . | . . . Robot Hacks Applied . | . . . Relay Couplers Released . | . . . Fabnet Peak Effective % . | . . . Robots Rewired . | . . . Allies Hacked . | . . . Hacks Repelled . | . . . Allies | -11 -10 -10 -------- Run | Yrd Mat Min Total Allies . | . . . Largest Group . | . . . Highest-Rated Group . | . . . Highest-Rated Ally . | . . . Total Orders . | . . . Ally Attacks . | . . . Total Damage . | . . . Kills . | . . . Allies Corrupted . | . . . Allies Melted . | . . . Intel | -11 -10 -10 ------- Run | Yrd Mat Min Robot Analysis Total 1 | . 1 . Derelict Logs Recovered . | . . . Drone Launches . | . . . Drone Recoveries . | . . . Exploration | -11 -10 -10 ------------- Run | Yrd Mat Min Turns Passed 1149 | 37 992 120 Spaces Moved 777 | 36 677 64 Core 18 | 18 . . Treads . | . . . Legs . | . . . Wheels 759 | 18 677 64 Hover . | . . . Flight . | . . . Fastest Speed 50 | 50 80 140 Average Speed 113 | 65 113 140 Slowest Speed 200 | 80 140 200 Overloaded Moves . | . . . Propulsion Burnouts . | . . . Robots Hopped . | . . . Cave-ins Triggered . | . . . Exploration Rate (%) 34 | 3 91 10 Regions Visited 2 Branch Regions 1 Pre-discovered Areas . | . . . Known Exits Taken . | . . . Unknown Exits Taken 2 | 1 1 . Scrap Searched 1 | . . 1 Spaces Dug . | . . . Terrain Destroyed 3 | . 3 . Melee . | . . . Projectile . | . . . AOE 3 | . 3 . Terrain Rammed . | . . . Walls Destroyed . | . . . Machines Disabled . | . . . Actions | -11 -10 -10 --------- Run | Yrd Mat Min Total 931 | 48 801 82 Wait 12 | . 12 . Move 775 | 35 676 64 Hop . | . . . Pick Up 40 | 6 31 3 Fast Attach 3 | 1 2 . Attach 12 | 5 3 4 Detach . | . . . Swap 9 | 1 7 1 Drop 13 | . 13 . Fire 67 | . 57 10 Melee . | . . . Ram . | . . . Kick . | . . . Crush . | . . . Escape Stasis . | . . . Rewire . | . . . Trap . | . . . Miscellaneous . | . . . Route ------- -11/Scrapyard -10/Materials (discovered 5 exits: [*Mat x3] / [*Min x2]) -10/Mines History --------- Turn | Location | Event 11 | -11/Scrapyard | Discovered new exit (range 15) 38 | -11/Scrapyard | Entered Materials 314 | -10/Materials | Build established: Mutant 332 | -10/Materials | Discovered new exit (range 6) 336 | -10/Materials | Discovered new exit (range 13) 365 | -10/Materials | Discovered new exit (range 15) 612 | -10/Materials | Discovered new exit (range 10) 872 | -10/Materials | Discovered new exit (range 8) 1030 | -10/Materials | Entered Mines 1098 | -10/Mines | Assembled infested the area 1140 | -10/Mines | Core integrity fell below 50% 1149 | -10/Mines | Core integrity fell below 20% 1150 | -10/Mines | Destroyed by D-53 Grenadier with Mini Grenade Launcher Last Messages --------------- dispatching Demolisher response squad. 01116_ C-30 ARC bursts open, deploying its payload. 01116_ D-53 Grenadier unfolds itself. 01116_ Lgt. Ion Engine destroyed. 01120_ The unstable cave ceiling collapses. 01122_ Beam Cannon destroyed. 01133_ Pressure Siphon disabled. 01133_ D-53 Grenadier knocked back. 01135_ Wheel destroyed. 01136_ D-53 Grenadier knocked back. 01137_ The unstable cave ceiling collapses. 01142_ Lgt. Cannon destroyed. 01143_ The unstable cave ceiling collapses. 01144_ Wheel destroyed. 01144_ D-53 Grenadier destroyed. 01144_ Lgt. Assault Rifle destroyed. 01149_ System corrupted: Component data lost. 01150_ The unstable cave ceiling collapses. 01150_ Core Shielding destroyed. Map ----- +----------------------------------------------------+ | ?????????????????????????????????????????????????? | | ?????????????????????????????????????????????????? | | ?????????????????????????????????????????????????? | | ?????????????????????????????????????????????????? | | ?????????????????????????????????????????????????? | | ?????????????????????????????????????????????????? | | ?????????????????????????????????????????????????? | | ?????????????????????????????????????????????????? | | ?????????????????????????????????????????????????? | | ?????????????????????????????????????????????????? | | ??????????????????????????#??????????????????????? | | ?????????????????????????? ??????????????????????? | | ?????????????????????????? ??????????????????????? | | ?????????????????????????? ??????????????????????? | | ?????????????????????????? ??????????????????????? | | ????????????????????????## ## #?????????????????? | | ???????????????????????## ###???????????????? | | ??????????????????????## ????????????????? | | ??????????????????????# a?????????????????? | | ??????????????????????? """ #?????????????????? | | ???????????############# """ ###???????????????? | | ???????????# # " ????????????????? | | ???????????# #?????????????????? | | ???????????# #?????????????????? | | ???????????# """ ##?????????????????? | | ???????????# """" @ #?????????????????? | | ???????????# """" ##?????????????????? | | ???????????# *%! d # #??????????????????? | | ???????????######## ##??????????????????? | | ??????????????????# ##???????????????????? | | ??????????????????# # ####????????????????????? | | ??????????????????# ##????????????????????? | | ??????????????????## #????????????????????? | | ???????????????????##### ###????????????????????? | | ??????????????????????# #????????????????????? | | ??????????????????????## #????????????????????? | | ???????????????????????## ###????????????????????? | | ????????????????????????# #??????????????????????? | | ????????????????????????#%#??????????????????????? | | ???????????????????????? " ??????????????????????? | | ???????????????????????? ??????????????????????? | | ????????????????????????####?????????????????????? | | ?????????????????????????????????????????????????? | | ?????????????????????????????????????????????????? | | ?????????????????????????????????????????????????? | | ?????????????????????????????????????????????????? | | ?????????????????????????????????????????????????? | | ?????????????????????????????????????????????????? | | ?????????????????????????????????????????????????? | | ?????????????????????????????????????????????????? | +----------------------------------------------------+ Best States ------------- Heat Dissipation 25 Energy Generation 10 Energy Capacity 450 Matter Stores 300 Matter Capacity 300 Sight Range 16 Terrain Scan Density 10 Core Shielding 20 Evasion (%) 50 Item Schematics ----------------- None Robot Schematics ------------------ None Fabricated ------------ Nothing Alien Tech Used ----------------- None Achievements -------------- None Challenges ------------ None Game ------ Seed WardroneGaussMediator Manual? 0 Play Time 00:14:13 Cumulative 61.6 hours Start 2024.03.24 @ 22:14:47 End 2024.03.24 @ 22:27:26 Sessions 1 Manual Loads 0 Difficulty Rogue Special Mode None Game No. 55 Rogue 53 Adventurer 0 Explorer 2 Win Type - Total 0 Types 0/0/0/0/0/0/0/0/0 Lore% 20 Gallery% 33 Achievement% 21 Wizard Run 0 Options --------- Layout 1 ASCII 0 Keyboard 0 Movement Mouse Keybinds 0 Fullscreen 2 Font 48/Tamsyn Map View 50x35 Zoom Use 0% Tactical HUD 1 Map Filters NONE Filters NONE Steam 1 RUN: 0a121d2c-6c43-4efc-8bf2-2189805d88be